[Event "Titled Tuesday Blitz March 21 Early 2023"]
[White "Smirnov, Pavel"]
[Black "Van Foreest, Jorden"]
[WhiteFideId "4123425"]
[BlackFideId "1039784"]
[WhiteElo "2519"]
[BlackElo "2633"]
[Result "0-1"]
[Round "08"]
[TimeControl "180+2"]
[Date "2023.03.21"]
[WhiteClock "0:00:07"]
[BlackClock "0:00:52"]

1. d4 {[%clk 0:03:00]}  d5 {[%clk 0:02:58]} 2. c4 {[%clk 0:03:00]}  c6 {[%clk 0:02:58]} 3. cxd5 {[%clk 0:02:56]}  cxd5 {[%clk 0:02:58]} 4. Bf4 {[%clk 0:02:57]}  Nc6 {[%clk 0:02:55]} 5. e3 {[%clk 0:02:57]}  Bf5 {[%clk 0:02:55]} 6. Nc3 {[%clk 0:02:55]}  e6 {[%clk 0:02:53]} 7. Qb3 {[%clk 0:02:51]}  Qd7 {[%clk 0:02:46]} 8. Nf3 {[%clk 0:02:48]}  f6 {[%clk 0:02:47]} 9. Be2 {[%clk 0:02:29]}  g5 {[%clk 0:02:45]} 10. Bg3 {[%clk 0:02:28]}  h5 {[%clk 0:02:44]} 11. h4 {[%clk 0:02:26]}  g4 {[%clk 0:02:45]} 12. Nd2 {[%clk 0:02:26]}  Nge7 {[%clk 0:02:39]} 13. Nb5 {[%clk 0:02:17]}  Kf7 {[%clk 0:02:33]} 14. Nd6+ {[%clk 0:02:14]}  Kg7 {[%clk 0:02:33]} 15. Qxb7 {[%clk 0:02:08]}  Qxb7 {[%clk 0:02:29]} 16. Nxb7 {[%clk 0:02:09]}  Bg6 {[%clk 0:02:24]} 17. Rc1 {[%clk 0:02:05]}  Be8 {[%clk 0:02:18]} 18. Nd6 {[%clk 0:01:27]}  Bd7 {[%clk 0:02:17]} 19. O-O {[%clk 0:01:28]}  e5 {[%clk 0:01:36]} 20. Nb3 {[%clk 0:01:27]}  Be6 {[%clk 0:01:33]} 21. Nc5 {[%clk 0:01:25]}  Bg8 {[%clk 0:01:34]} 22. dxe5 {[%clk 0:01:18]}  fxe5 {[%clk 0:01:33]} 23. f3 {[%clk 0:01:13]}  Rh6 {[%clk 0:01:33]} 24. Nb5 {[%clk 0:01:01]}  Nf5 {[%clk 0:01:33]} 25. Kf2 {[%clk 0:00:43]}  Rb8 {[%clk 0:01:21]} 26. fxg4 {[%clk 0:00:38]}  hxg4 {[%clk 0:01:21]} 27. Bxg4 {[%clk 0:00:38]}  Nxg3 {[%clk 0:01:20]} 28. Kxg3 {[%clk 0:00:37]}  Rxb5 {[%clk 0:01:21]} 29. Nd7 {[%clk 0:00:24]}  Be7 {[%clk 0:01:21]} 30. h5 {[%clk 0:00:23]}  Rxb2 {[%clk 0:01:16]} 31. Rf5 {[%clk 0:00:17]}  Be6 {[%clk 0:01:15]} 32. Rxc6 {[%clk 0:00:16]}  Bxd7 {[%clk 0:01:03]} 33. Rxh6 {[%clk 0:00:09]}  Bxf5 {[%clk 0:01:02]} 34. Ra6 {[%clk 0:00:08]}  Bxg4 {[%clk 0:01:02]} 35. Kxg4 {[%clk 0:00:09]}  Rxg2+ {[%clk 0:00:54]} 36. Kf5 {[%clk 0:00:09]}  Bc5 {[%clk 0:00:53]} 37. Kxe5 {[%clk 0:00:08]}  Rg5+ {[%clk 0:00:51]} 38. Kf4 {[%clk 0:00:07]}  Rxh5 {[%clk 0:00:52]} 0-1


[Site "https://www.chess.com"]

[Event "Titled Tuesday Blitz March 21 Early 2023"]
[White "Erigaisi Arjun"]
[Black "Ahmadzada, Ahmad"]
[WhiteFideId "35009192"]
[BlackFideId "13413007"]
[WhiteElo "2737"]
[BlackElo "2388"]
[Result "1/2-1/2"]
[Round "08"]
[TimeControl "180+2"]
[Date "2023.03.21"]
[WhiteClock "0:00:11"]
[BlackClock "0:00:05"]

1. b3 {[%clk 0:03:00]}  a5 {[%clk 0:02:58]} 2. Nc3 {[%clk 0:02:58]}  e5 {[%clk 0:02:58]} 3. Nf3 {[%clk 0:02:54]}  Nc6 {[%clk 0:02:58]} 4. e3 {[%clk 0:02:53]}  Nf6 {[%clk 0:02:58]} 5. Bb5 {[%clk 0:02:51]}  e4 {[%clk 0:02:57]} 6. Ng5 {[%clk 0:02:46]}  d5 {[%clk 0:02:57]} 7. f3 {[%clk 0:02:38]}  h6 {[%clk 0:02:55]} 8. Nh3 {[%clk 0:02:39]}  Bxh3 {[%clk 0:02:45]} 9. gxh3 {[%clk 0:02:38]}  Bb4 {[%clk 0:02:46]} 10. Bb2 {[%clk 0:02:34]}  O-O {[%clk 0:02:42]} 11. Bxc6 {[%clk 0:02:34]}  bxc6 {[%clk 0:02:41]} 12. Na4 {[%clk 0:02:29]}  Nh5 {[%clk 0:02:34]} 13. Qe2 {[%clk 0:02:27]}  Qh4+ {[%clk 0:02:34]} 14. Qf2 {[%clk 0:02:19]}  Bxd2+ {[%clk 0:02:33]} 15. Ke2 {[%clk 0:02:15]}  exf3+ {[%clk 0:02:11]} 16. Qxf3 {[%clk 0:02:16]}  Bxe3 {[%clk 0:02:03]} 17. Kxe3 {[%clk 0:02:10]}  Rae8+ {[%clk 0:02:02]} 18. Kd2 {[%clk 0:02:08]}  Qg5+ {[%clk 0:01:58]} 19. Kd1 {[%clk 0:02:06]}  Re4 {[%clk 0:01:42]} 20. Nc5 {[%clk 0:01:55]}  Rf4 {[%clk 0:01:40]} 21. Qe2 {[%clk 0:01:54]}  Qf5 {[%clk 0:01:22]} 22. Qd3 {[%clk 0:01:38]}  Qg5 {[%clk 0:01:15]} 23. Qe2 {[%clk 0:01:12]}  Qf5 {[%clk 0:01:11]} 24. Nd3 {[%clk 0:00:58]}  Re4 {[%clk 0:01:08]} 25. Qg2 {[%clk 0:00:57]}  Rfe8 {[%clk 0:01:01]} 26. Rf1 {[%clk 0:00:55]}  Qe6 {[%clk 0:00:49]} 27. Qf3 {[%clk 0:00:44]}  g6 {[%clk 0:00:31]} 28. Bc3 {[%clk 0:00:30]}  d4 {[%clk 0:00:29]} 29. Bd2 {[%clk 0:00:26]}  Qd5 {[%clk 0:00:25]} 30. a4 {[%clk 0:00:19]}  f5 {[%clk 0:00:21]} 31. Kc1 {[%clk 0:00:18]}  c5 {[%clk 0:00:20]} 32. Rg1 {[%clk 0:00:16]}  Kh7 {[%clk 0:00:18]} 33. Qg2 {[%clk 0:00:15]}  R8e6 {[%clk 0:00:10]} 34. Nf2 {[%clk 0:00:11]}  R4e5 {[%clk 0:00:10]} 35. Qxd5 {[%clk 0:00:12]}  Rxd5 {[%clk 0:00:11]} 36. Nd3 {[%clk 0:00:10]}  Re2 {[%clk 0:00:09]} 37. Nf4 {[%clk 0:00:08]}  Nxf4 {[%clk 0:00:09]} 38. Bxf4 {[%clk 0:00:09]}  g5 {[%clk 0:00:10]} 39. Bxc7 {[%clk 0:00:09]}  c4 {[%clk 0:00:11]} 40. bxc4 {[%clk 0:00:05]}  Rc5 {[%clk 0:00:11]} 41. Bb6 {[%clk 0:00:05]}  Rxc4 {[%clk 0:00:12]} 42. Ra2 {[%clk 0:00:06]}  d3 {[%clk 0:00:12]} 43. Bxa5 {[%clk 0:00:07]}  dxc2 {[%clk 0:00:10]} 44. Bd2 {[%clk 0:00:06]}  Rxh2 {[%clk 0:00:06]} 45. a5 {[%clk 0:00:05]}  Rxh3 {[%clk 0:00:07]} 46. a6 {[%clk 0:00:05]}  Rb3 {[%clk 0:00:08]} 47. Rb2 {[%clk 0:00:03]}  Ra3 {[%clk 0:00:08]} 48. Rb7+ {[%clk 0:00:02]}  Kg6 {[%clk 0:00:08]} 49. Rb6+ {[%clk 0:00:02]}  Kg7 {[%clk 0:00:07]} 50. Kb2 {[%clk 0:00:03]}  Raa4 {[%clk 0:00:05]} 51. Rb7+ {[%clk 0:00:03]}  Kg6 {[%clk 0:00:05]} 52. a7 {[%clk 0:00:04]}  Rc6 {[%clk 0:00:03]} 53. Rg3 {[%clk 0:00:03]}  Rca6 {[%clk 0:00:03]} 54. Be3 {[%clk 0:00:03]}  f4 {[%clk 0:00:03]} 55. Bxf4 {[%clk 0:00:03]}  Rxf4 {[%clk 0:00:03]} 56. Rgb3 {[%clk 0:00:03]}  Rfa4 {[%clk 0:00:03]} 57. R3b6+ {[%clk 0:00:03]}  Rxb6+ {[%clk 0:00:03]} 58. Rxb6+ {[%clk 0:00:04]}  Kh5 {[%clk 0:00:03]} 59. Rb7 {[%clk 0:00:05]}  Kg4 {[%clk 0:00:02]} 60. Kxc2 {[%clk 0:00:06]}  Kg3 {[%clk 0:00:02]} 61. Kb3 {[%clk 0:00:06]}  Ra1 {[%clk 0:00:02]} 62. Rh7 {[%clk 0:00:07]}  g4 {[%clk 0:00:02]} 63. Kc4 {[%clk 0:00:08]}  Kg2 {[%clk 0:00:03]} 64. Kb5 {[%clk 0:00:07]}  g3 {[%clk 0:00:03]} 65. Kb6 {[%clk 0:00:08]}  Rb1+ {[%clk 0:00:04]} 66. Kc6 {[%clk 0:00:08]}  Ra1 {[%clk 0:00:04]} 67. Kb7 {[%clk 0:00:08]}  Kg1 {[%clk 0:00:04]} 68. Rxh6 {[%clk 0:00:07]}  Rxa7+ {[%clk 0:00:03]} 69. Kxa7 {[%clk 0:00:08]}  g2 {[%clk 0:00:03]} 70. Kb6 {[%clk 0:00:08]}  Kf1 {[%clk 0:00:04]} 71. Rf6+ {[%clk 0:00:09]}  Ke2 {[%clk 0:00:04]} 72. Rg6 {[%clk 0:00:09]}  Kf2 {[%clk 0:00:04]} 73. Kc5 {[%clk 0:00:10]}  g1=Q {[%clk 0:00:04]} 74. Rxg1 {[%clk 0:00:11]}  Kxg1 {[%clk 0:00:05]} 1/2-1/2


[Site "https://www.chess.com"]

[Event "Titled Tuesday Blitz March 21 Early 2023"]
[White "Bok, Benjamin"]
[Black "Ashraf, Artin"]
[WhiteFideId "1017063"]
[BlackFideId "22514805"]
[WhiteElo "2658"]
[BlackElo "2188"]
[Result "1-0"]
[Round "08"]
[TimeControl "180+2"]
[Date "2023.03.21"]
[WhiteClock "0:00:04"]
[BlackClock "0:00:03"]

1. d4 {[%clk 0:02:59]}  d5 {[%clk 0:03:00]} 2. c4 {[%clk 0:02:59]}  e6 {[%clk 0:02:58]} 3. Nc3 {[%clk 0:02:59]}  a6 {[%clk 0:02:59]} 4. cxd5 {[%clk 0:02:57]}  exd5 {[%clk 0:02:59]} 5. Nf3 {[%clk 0:02:58]}  Nf6 {[%clk 0:02:59]} 6. Bg5 {[%clk 0:02:57]}  Be6 {[%clk 0:02:58]} 7. e3 {[%clk 0:02:57]}  Nbd7 {[%clk 0:02:56]} 8. h3 {[%clk 0:02:57]}  Bd6 {[%clk 0:02:56]} 9. Bd3 {[%clk 0:02:58]}  c6 {[%clk 0:02:56]} 10. Bf4 {[%clk 0:02:57]}  Qc7 {[%clk 0:02:53]} 11. Qc1 {[%clk 0:02:57]}  O-O {[%clk 0:02:49]} 12. O-O {[%clk 0:02:57]}  h6 {[%clk 0:02:44]} 13. a4 {[%clk 0:02:56]}  Rac8 {[%clk 0:02:34]} 14. b4 {[%clk 0:02:52]}  b5 {[%clk 0:02:30]} 15. axb5 {[%clk 0:01:53]}  axb5 {[%clk 0:02:28]} 16. Ra6 {[%clk 0:01:51]}  Qb7 {[%clk 0:02:07]} 17. Bxd6 {[%clk 0:01:15]}  Qxa6 {[%clk 0:02:06]} 18. Bxf8 {[%clk 0:01:15]}  Kxf8 {[%clk 0:02:03]} 19. Ne2 {[%clk 0:01:15]}  Nb6 {[%clk 0:01:36]} 20. Qc3 {[%clk 0:01:05]}  Nc4 {[%clk 0:01:24]} 21. Ra1 {[%clk 0:01:04]}  Qb7 {[%clk 0:01:24]} 22. Ra2 {[%clk 0:00:55]}  Ra8 {[%clk 0:01:16]} 23. Qa1 {[%clk 0:00:55]}  Rxa2 {[%clk 0:01:12]} 24. Qxa2 {[%clk 0:00:56]}  Ne8 {[%clk 0:01:08]} 25. Nf4 {[%clk 0:00:55]}  Bc8 {[%clk 0:01:07]} 26. Be2 {[%clk 0:00:39]}  Nf6 {[%clk 0:01:04]} 27. Nd2 {[%clk 0:00:35]}  Qa6 {[%clk 0:00:55]} 28. Qxa6 {[%clk 0:00:32]}  Bxa6 {[%clk 0:00:56]} 29. Nb3 {[%clk 0:00:33]}  Ne4 {[%clk 0:00:55]} 30. Nc5 {[%clk 0:00:26]}  Nxc5 {[%clk 0:00:52]} 31. dxc5 {[%clk 0:00:27]}  Bc8 {[%clk 0:00:41]} 32. Kf1 {[%clk 0:00:25]}  Bf5 {[%clk 0:00:32]} 33. Ke1 {[%clk 0:00:23]}  Ke7 {[%clk 0:00:30]} 34. Bf1 {[%clk 0:00:14]}  Na3 {[%clk 0:00:23]} 35. Kd2 {[%clk 0:00:13]}  Nb1+ {[%clk 0:00:23]} 36. Kc1 {[%clk 0:00:11]}  Nc3 {[%clk 0:00:23]} 37. Kd2 {[%clk 0:00:09]}  Na2 {[%clk 0:00:19]} 38. Bd3 {[%clk 0:00:08]}  Bd7 {[%clk 0:00:17]} 39. Ne2 {[%clk 0:00:07]}  Nxb4 {[%clk 0:00:17]} 40. Kc3 {[%clk 0:00:07]}  Na6 {[%clk 0:00:17]} 41. Kd4 {[%clk 0:00:08]}  Nc7 {[%clk 0:00:17]} 42. Kc3 {[%clk 0:00:07]}  Kd8 {[%clk 0:00:12]} 43. Nd4 {[%clk 0:00:07]}  Na6 {[%clk 0:00:12]} 44. Nb3 {[%clk 0:00:08]}  Be6 {[%clk 0:00:12]} 45. Kd4 {[%clk 0:00:07]}  Kc7 {[%clk 0:00:12]} 46. Be2 {[%clk 0:00:07]}  Nb8 {[%clk 0:00:12]} 47. Kc3 {[%clk 0:00:07]}  f6 {[%clk 0:00:13]} 48. Nd4 {[%clk 0:00:06]}  Bf7 {[%clk 0:00:12]} 49. Bg4 {[%clk 0:00:06]}  Na6 {[%clk 0:00:11]} 50. Nb3 {[%clk 0:00:06]}  Kb7 {[%clk 0:00:12]} 51. h4 {[%clk 0:00:05]}  Kc7 {[%clk 0:00:10]} 52. g3 {[%clk 0:00:04]}  Nb8 {[%clk 0:00:10]} 53. Nd4 {[%clk 0:00:04]}  g6 {[%clk 0:00:08]} 54. Be6 {[%clk 0:00:03]}  Be8 {[%clk 0:00:06]} 55. Bg4 {[%clk 0:00:03]}  Kd8 {[%clk 0:00:06]} 56. Ne6+ {[%clk 0:00:03]}  Ke7 {[%clk 0:00:06]} 57. Nd4 {[%clk 0:00:04]}  Na6 {[%clk 0:00:06]} 58. Nb3 {[%clk 0:00:04]}  Nc7 {[%clk 0:00:07]} 59. Nd4 {[%clk 0:00:04]}  Bd7 {[%clk 0:00:07]} 60. Be2 {[%clk 0:00:03]}  Ne8 {[%clk 0:00:05]} 61. Bd3 {[%clk 0:00:03]}  Kf7 {[%clk 0:00:04]} 62. Bc2 {[%clk 0:00:02]}  Ng7 {[%clk 0:00:04]} 63. Kb4 {[%clk 0:00:03]}  Ne6 {[%clk 0:00:05]} 64. Bd3 {[%clk 0:00:02]}  Nxd4 {[%clk 0:00:04]} 65. exd4 {[%clk 0:00:03]}  Bf5 {[%clk 0:00:05]} 66. Be2 {[%clk 0:00:03]}  Ke6 {[%clk 0:00:05]} 67. Ka5 {[%clk 0:00:02]}  g5 {[%clk 0:00:03]} 68. hxg5 {[%clk 0:00:02]}  fxg5 {[%clk 0:00:04]} 69. Bf3 {[%clk 0:00:01]}  Be4 {[%clk 0:00:04]} 70. Bg4+ {[%clk 0:00:02]}  Ke7 {[%clk 0:00:04]} 71. Kb4 {[%clk 0:00:02]}  Kf6 {[%clk 0:00:04]} 72. f3 {[%clk 0:00:01]}  Bg6 {[%clk 0:00:04]} 73. Bd7 {[%clk 0:00:02]}  h5 {[%clk 0:00:04]} 74. Bxc6 {[%clk 0:00:02]}  Bf7 {[%clk 0:00:03]} 75. Bxb5 {[%clk 0:00:02]}  h4 {[%clk 0:00:01]} 76. gxh4 {[%clk 0:00:03]}  gxh4 {[%clk 0:00:02]} 77. Bf1 {[%clk 0:00:03]}  Kf5 {[%clk 0:00:02]} 78. c6 {[%clk 0:00:03]}  Kf4 {[%clk 0:00:03]} 79. Kc5 {[%clk 0:00:04]}  Kxf3 {[%clk 0:00:01]} 80. Kd6 {[%clk 0:00:04]}  Bh5 {[%clk 0:00:02]} 81. Bh3 {[%clk 0:00:04]}  Kg3 {[%clk 0:00:02]} 82. c7 {[%clk 0:00:04]}  Bg4 {[%clk 0:00:03]} 83. Bxg4 {[%clk 0:00:04]} 1-0


[Site "https://www.chess.com"]

[Event "Titled Tuesday Blitz March 21 Early 2023"]
[White "Tari, Aryan"]
[Black "Mekhitarian, Krikor Sevag"]
[WhiteFideId "1510045"]
[BlackFideId "2107660"]
[WhiteElo "2583"]
[BlackElo "2604"]
[Result "0-1"]
[Round "08"]
[TimeControl "180+2"]
[Date "2023.03.21"]
[WhiteClock "0:00:02"]
[BlackClock "0:00:12"]

1. Nf3 {[%clk 0:02:50]}  d5 {[%clk 0:02:59]} 2. d4 {[%clk 0:02:44]}  Nf6 {[%clk 0:02:58]} 3. Bf4 {[%clk 0:02:44]}  c5 {[%clk 0:02:52]} 4. e3 {[%clk 0:02:44]}  e6 {[%clk 0:02:51]} 5. c3 {[%clk 0:02:40]}  Nc6 {[%clk 0:02:49]} 6. Nbd2 {[%clk 0:02:40]}  Nh5 {[%clk 0:02:50]} 7. Bg5 {[%clk 0:02:36]}  Qb6 {[%clk 0:02:50]} 8. Rb1 {[%clk 0:02:23]}  h6 {[%clk 0:02:49]} 9. Bh4 {[%clk 0:02:22]}  g5 {[%clk 0:02:39]} 10. Bg3 {[%clk 0:02:10]}  Nxg3 {[%clk 0:02:36]} 11. hxg3 {[%clk 0:02:11]}  Bg7 {[%clk 0:02:36]} 12. Bd3 {[%clk 0:02:00]}  g4 {[%clk 0:02:18]} 13. dxc5 {[%clk 0:01:54]}  Qxc5 {[%clk 0:02:14]} 14. Nd4 {[%clk 0:01:55]}  h5 {[%clk 0:02:12]} 15. Qe2 {[%clk 0:01:52]}  Bd7 {[%clk 0:02:11]} 16. b4 {[%clk 0:01:37]}  Qxc3 {[%clk 0:01:46]} 17. Nxc6 {[%clk 0:01:13]}  Qxc6 {[%clk 0:01:44]} 18. O-O {[%clk 0:01:10]}  f5 {[%clk 0:01:35]} 19. Rfc1 {[%clk 0:01:05]}  Qd6 {[%clk 0:01:33]} 20. Bb5 {[%clk 0:01:03]}  O-O {[%clk 0:01:33]} 21. Bxd7 {[%clk 0:01:00]}  Qxd7 {[%clk 0:01:32]} 22. Nb3 {[%clk 0:00:59]}  Rac8 {[%clk 0:01:31]} 23. Nc5 {[%clk 0:00:59]}  Qe7 {[%clk 0:01:29]} 24. Qb5 {[%clk 0:00:59]}  b6 {[%clk 0:01:28]} 25. Nd3 {[%clk 0:00:59]}  Qd6 {[%clk 0:01:22]} 26. Nf4 {[%clk 0:00:49]}  h4 {[%clk 0:00:51]} 27. gxh4 {[%clk 0:00:48]}  g3 {[%clk 0:00:52]} 28. fxg3 {[%clk 0:00:47]}  Qe5 {[%clk 0:00:52]} 29. Kh2 {[%clk 0:00:31]}  Qd6 {[%clk 0:00:36]} 30. Qa6 {[%clk 0:00:26]}  Qd7 {[%clk 0:00:35]} 31. b5 {[%clk 0:00:21]}  Rfe8 {[%clk 0:00:31]} 32. Qa4 {[%clk 0:00:07]}  Be5 {[%clk 0:00:31]} 33. Qd1 {[%clk 0:00:05]}  Rc5 {[%clk 0:00:31]} 34. Nd3 {[%clk 0:00:03]}  Rxc1 {[%clk 0:00:24]} 35. Rxc1 {[%clk 0:00:04]}  Bb8 {[%clk 0:00:23]} 36. Qh5 {[%clk 0:00:04]}  Qf7 {[%clk 0:00:23]} 37. Qxf7+ {[%clk 0:00:04]}  Kxf7 {[%clk 0:00:24]} 38. a4 {[%clk 0:00:04]}  Rd8 {[%clk 0:00:23]} 39. Nf4 {[%clk 0:00:04]}  d4 {[%clk 0:00:23]} 40. Rd1 {[%clk 0:00:04]}  e5 {[%clk 0:00:23]} 41. Ne2 {[%clk 0:00:04]}  d3 {[%clk 0:00:17]} 42. Nc1 {[%clk 0:00:04]}  e4 {[%clk 0:00:17]} 43. Nb3 {[%clk 0:00:05]}  Be5 {[%clk 0:00:17]} 44. Kh3 {[%clk 0:00:04]}  Rc8 {[%clk 0:00:17]} 45. g4 {[%clk 0:00:05]}  fxg4+ {[%clk 0:00:13]} 46. Kxg4 {[%clk 0:00:06]}  Ke6 {[%clk 0:00:14]} 47. Kh5 {[%clk 0:00:03]}  Rh8+ {[%clk 0:00:14]} 48. Kg4 {[%clk 0:00:03]}  Rg8+ {[%clk 0:00:14]} 49. Kh3 {[%clk 0:00:03]}  Rg3+ {[%clk 0:00:15]} 50. Kh2 {[%clk 0:00:04]}  Rxe3+ {[%clk 0:00:15]} 51. Kg1 {[%clk 0:00:05]}  Re2 {[%clk 0:00:15]} 52. Nd2 {[%clk 0:00:03]}  Bf4 {[%clk 0:00:14]} 53. Nf1 {[%clk 0:00:02]}  d2 {[%clk 0:00:13]} 54. g3 {[%clk 0:00:02]}  Re1 {[%clk 0:00:12]} 0-1


[Site "https://www.chess.com"]

[Event "Titled Tuesday Blitz March 21 Early 2023"]
[White "Gukesh D"]
[Black "Praggnanandhaa R"]
[WhiteFideId "46616543"]
[BlackFideId "25059530"]
[WhiteElo "2612"]
[BlackElo "2623"]
[Result "1-0"]
[Round "08"]
[TimeControl "180+2"]
[Date "2023.03.21"]
[WhiteClock "0:00:26"]
[BlackClock "0:00:03"]

1. d4 {[%clk 0:03:00]}  Nf6 {[%clk 0:03:00]} 2. c4 {[%clk 0:03:01]}  Nc6 {[%clk 0:02:59]} 3. Nf3 {[%clk 0:03:00]}  e6 {[%clk 0:02:59]} 4. g3 {[%clk 0:02:59]}  Bb4+ {[%clk 0:02:58]} 5. Nbd2 {[%clk 0:02:56]}  d6 {[%clk 0:02:50]} 6. Bg2 {[%clk 0:02:56]}  O-O {[%clk 0:02:49]} 7. O-O {[%clk 0:02:56]}  e5 {[%clk 0:02:48]} 8. d5 {[%clk 0:02:51]}  Bxd2 {[%clk 0:02:41]} 9. Nxd2 {[%clk 0:02:47]}  Nb8 {[%clk 0:02:39]} 10. e4 {[%clk 0:02:46]}  a5 {[%clk 0:02:39]} 11. b3 {[%clk 0:02:45]}  Na6 {[%clk 0:02:39]} 12. a3 {[%clk 0:02:45]}  Bg4 {[%clk 0:02:34]} 13. Qc2 {[%clk 0:02:40]}  Qd7 {[%clk 0:02:33]} 14. Bb2 {[%clk 0:02:37]}  Bh3 {[%clk 0:02:27]} 15. Rae1 {[%clk 0:02:35]}  Bxg2 {[%clk 0:02:13]} 16. Kxg2 {[%clk 0:02:36]}  Qe7 {[%clk 0:02:14]} 17. f4 {[%clk 0:02:31]}  Nd7 {[%clk 0:02:08]} 18. Nf3 {[%clk 0:02:25]}  f6 {[%clk 0:02:01]} 19. Kh1 {[%clk 0:02:24]}  Rab8 {[%clk 0:01:58]} 20. Bc3 {[%clk 0:02:13]}  Rfc8 {[%clk 0:01:28]} 21. Bxa5 {[%clk 0:02:09]}  c6 {[%clk 0:01:28]} 22. Qd1 {[%clk 0:02:01]}  Kh8 {[%clk 0:01:22]} 23. Rf2 {[%clk 0:01:46]}  b5 {[%clk 0:01:17]} 24. dxc6 {[%clk 0:01:34]}  Rxc6 {[%clk 0:01:17]} 25. cxb5 {[%clk 0:01:33]}  Rxb5 {[%clk 0:01:17]} 26. b4 {[%clk 0:01:33]}  Rb8 {[%clk 0:01:04]} 27. Rd2 {[%clk 0:01:21]}  exf4 {[%clk 0:00:54]} 28. gxf4 {[%clk 0:01:17]}  Rbc8 {[%clk 0:00:36]} 29. Qe2 {[%clk 0:01:02]}  Rc4 {[%clk 0:00:28]} 30. b5 {[%clk 0:00:54]}  Nab8 {[%clk 0:00:27]} 31. Bb4 {[%clk 0:00:53]}  Qe8 {[%clk 0:00:21]} 32. Bxd6 {[%clk 0:00:52]}  h6 {[%clk 0:00:21]} 33. e5 {[%clk 0:00:48]}  fxe5 {[%clk 0:00:20]} 34. fxe5 {[%clk 0:00:47]}  Nb6 {[%clk 0:00:20]} 35. e6 {[%clk 0:00:44]}  Qxb5 {[%clk 0:00:19]} 36. e7 {[%clk 0:00:32]}  Qe8 {[%clk 0:00:19]} 37. Ne5 {[%clk 0:00:29]}  Rc1 {[%clk 0:00:19]} 38. Bxb8 {[%clk 0:00:27]}  Rxe1+ {[%clk 0:00:09]} 39. Qxe1 {[%clk 0:00:27]}  Nc4 {[%clk 0:00:03]} 40. Rd8 {[%clk 0:00:26]} 1-0


[Site "https://www.chess.com"]

[Event "Titled Tuesday Blitz March 21 Early 2023"]
[White "Real_OceanStorm"]
[Black "Grigoriants, Sergey"]
[BlackFideId "4130804"]
[WhiteElo "2821"]
[BlackElo "2502"]
[Result "0-1"]
[Round "08"]
[TimeControl "180+2"]
[Date "2023.03.21"]
[WhiteClock "0:00:09"]
[BlackClock "0:00:07"]

1. e4 {[%clk 0:03:00]}  c6 {[%clk 0:02:54]} 2. d4 {[%clk 0:03:00]}  d5 {[%clk 0:02:55]} 3. e5 {[%clk 0:03:01]}  Bf5 {[%clk 0:02:54]} 4. Be2 {[%clk 0:03:01]}  e6 {[%clk 0:02:53]} 5. Nc3 {[%clk 0:02:57]}  a6 {[%clk 0:02:51]} 6. g4 {[%clk 0:02:55]}  Bg6 {[%clk 0:02:50]} 7. h4 {[%clk 0:02:53]}  h6 {[%clk 0:02:46]} 8. Nf3 {[%clk 0:02:52]}  c5 {[%clk 0:02:46]} 9. Bd3 {[%clk 0:02:52]}  Bxd3 {[%clk 0:02:44]} 10. cxd3 {[%clk 0:02:51]}  Nc6 {[%clk 0:02:44]} 11. dxc5 {[%clk 0:02:52]}  Bxc5 {[%clk 0:02:39]} 12. d4 {[%clk 0:02:51]}  Ba7 {[%clk 0:02:35]} 13. a3 {[%clk 0:02:48]}  Nge7 {[%clk 0:02:34]} 14. h5 {[%clk 0:02:47]}  Qd7 {[%clk 0:02:23]} 15. Be3 {[%clk 0:02:46]}  O-O-O {[%clk 0:02:20]} 16. Qd2 {[%clk 0:02:36]}  Kb8 {[%clk 0:02:16]} 17. b4 {[%clk 0:02:25]}  Rc8 {[%clk 0:02:16]} 18. Rb1 {[%clk 0:02:24]}  f5 {[%clk 0:01:27]} 19. b5 {[%clk 0:01:49]}  fxg4 {[%clk 0:01:22]} 20. bxa6 {[%clk 0:01:47]}  Na5 {[%clk 0:01:04]} 21. Nh2 {[%clk 0:01:26]}  Qc6 {[%clk 0:00:56]} 22. axb7 {[%clk 0:01:23]}  Rc7 {[%clk 0:00:56]} 23. Na2 {[%clk 0:01:03]}  Nc4 {[%clk 0:00:51]} 24. Qd3 {[%clk 0:01:03]}  g3 {[%clk 0:00:43]} 25. Nb4 {[%clk 0:00:54]}  Qa4 {[%clk 0:00:35]} 26. fxg3 {[%clk 0:00:51]}  Rxb7 {[%clk 0:00:28]} 27. O-O {[%clk 0:00:51]}  Nf5 {[%clk 0:00:21]} 28. Bf2 {[%clk 0:00:48]}  Rc8 {[%clk 0:00:15]} 29. g4 {[%clk 0:00:26]}  Ne7 {[%clk 0:00:15]} 30. Bh4 {[%clk 0:00:25]}  Nc6 {[%clk 0:00:15]} 31. Nxc6+ {[%clk 0:00:25]}  Qxc6 {[%clk 0:00:14]} 32. Bg3 {[%clk 0:00:16]}  Rxb1 {[%clk 0:00:13]} 33. Rxb1+ {[%clk 0:00:16]}  Ka8 {[%clk 0:00:14]} 34. Nf3 {[%clk 0:00:16]}  Rf8 {[%clk 0:00:14]} 35. Kg2 {[%clk 0:00:16]}  Qa4 {[%clk 0:00:13]} 36. Rb3 {[%clk 0:00:16]}  Qc6 {[%clk 0:00:07]} 37. Qc3 {[%clk 0:00:16]}  Qd7 {[%clk 0:00:05]} 38. Rb4 {[%clk 0:00:16]}  Qf7 {[%clk 0:00:05]} 39. Nd2 {[%clk 0:00:16]}  Rc8 {[%clk 0:00:03]} 40. Nxc4 {[%clk 0:00:08]}  dxc4 {[%clk 0:00:04]} 41. Rxc4 {[%clk 0:00:08]}  Qb7+ {[%clk 0:00:05]} 42. Kh2 {[%clk 0:00:06]}  Rb8 {[%clk 0:00:05]} 43. Bf2 {[%clk 0:00:06]}  Rf8 {[%clk 0:00:04]} 44. Kh3 {[%clk 0:00:06]}  Rf3+ {[%clk 0:00:04]} 45. Kh2 {[%clk 0:00:06]}  Rxc3 {[%clk 0:00:04]} 46. Rxc3 {[%clk 0:00:06]}  Qb2 {[%clk 0:00:03]} 47. Rf3 {[%clk 0:00:07]}  Bxd4 {[%clk 0:00:03]} 48. Kg3 {[%clk 0:00:07]}  Bxf2+ {[%clk 0:00:04]} 49. Rxf2 {[%clk 0:00:07]}  Qxe5+ {[%clk 0:00:04]} 50. Kf3 {[%clk 0:00:08]}  Kb7 {[%clk 0:00:05]} 51. Re2 {[%clk 0:00:07]}  Qd5+ {[%clk 0:00:05]} 52. Kf2 {[%clk 0:00:08]}  e5 {[%clk 0:00:06]} 53. Rb2+ {[%clk 0:00:08]}  Kc6 {[%clk 0:00:06]} 54. Kg3 {[%clk 0:00:08]}  Qd3+ {[%clk 0:00:05]} 55. Kh2 {[%clk 0:00:08]}  e4 {[%clk 0:00:06]} 56. g5 {[%clk 0:00:09]}  e3 {[%clk 0:00:06]} 57. gxh6 {[%clk 0:00:09]}  gxh6 {[%clk 0:00:07]} 58. Ra2 {[%clk 0:00:09]}  e2 {[%clk 0:00:07]} 59. Ra1 {[%clk 0:00:09]}  Qc3 {[%clk 0:00:06]} 60. Rb1 {[%clk 0:00:09]}  e1=Q {[%clk 0:00:07]} 0-1


[Site "https://www.chess.com"]